Workbook

Sheet Disclaimer
D10: Disclaimer
D12: This Design Calculation Spreadsheet is provided "as-is" without warranty of any kind. The Montana Department of Transportation makes no representations or warranties whatsoever with respect to the accuracy or completeness of this tool and assumes no responsibility for the suitability of this tool for a particular purpose; and MDT will not be liable for any damages incurred as a result of errors in this tool. By selecting Accept, you are agreeing to these terms and conditions.
K22: WARNING: For the tool to work properly, please make sure you click on "Enable Content/Macros" if the security warning appears.

Sheet Linear Interpolation (hidden)
B2: Point | C2: Station | D2: Elevation | I2: Point | J2: X | K2: Y
A3: Slope | B3: 1 | C3: 11211.5 | D3: 3908.93 | I3: 4 | J3: 1.7933 | K3: 1.4
A4: =(D5-D3)/(C5-C3) -> -0.002 | B4: 2 | C4: 11213 | D4: =D3-(((C3-C4)*(D3-D5))/((C3-C5))) -> 3908.927 | F4: Y2 = | G4: =ROUND(D4,2) -> 3908.93 | I4: 5 | J4: 0.1582 | K4: =K3*J4/J3 -> 0.1235041544 | M4: Y5 = | N4: =ROUND(K4,1) -> 0.1
B5: 3 | C5: 11216.5 | D5: 3908.92
B7: FORMAT: | H7: FORMAT:
B12: Point | C12: X | D12: Y
A13: FILL | B13: 1 | C13: 0 | D13: 3908.53
A14: IN CZ | B14: 2 | C14: 1.5 | D14: =D13-(((C13-C14)*(D13-D15))/((C13-C15))) -> 3908.6375 | F14: Y2 = | G14: =ROUND(D14,2) -> 3908.64
B15: 3 | C15: 6 | D15: 3908.96
B17: Point | C17: X | D17: Y | I17: Point | J17: X | K17: Y
A18: FILL | B18: 1 | C18: 0 | D18: 3937.48 | I18: 1 | J18: 13050 | K18: 61.905
A19: OUT CZ | B19: 2 | C19: 1.588 | D19: =D18-(((C18-C19)*(D18-D20))/((C18-C20))) -> 3937.455173 | F19: Y2 = | G19: =ROUND(D19,2) -> 3937.46 | I19: 2 | J19: 13000 | K19: =K18-(((J18-J19)*(K18-K20))/((J18-J20))) -> 55.0835 | M19: Y2 = | N19: =ROUND(K19,2) -> 55.08
B20: 3 | C20: 10.234 | D20: 3937.32 | I20: 3 | J20: 12950 | K20: 48.262
B22: Point | C22: X | D22: Y
A23: FILL | B23: 1 | C23: 0 | D23: 3937.98
A24: OUT CZ | B24: 2 | C24: 2.597 | D24: =D23-(((C23-C24)*(D23-D25))/((C23-C25))) -> 3937.933267 | F24: Y2 = | G24: =ROUND(D24,2) -> 3937.93
B25: 3 | C25: 7.78 | D25: 3937.84
B27: Point | C27: X | D27: Y
A28: CUT | B28: 1 | C28: 0.5 | D28: 44
B29: 2 | C29: 0.8 | D29: =D28-(((C28-C29)*(D28-D30))/((C28-C30))) -> 61.4 | F29: Y2 = | G29: =ROUND(D29,2) -> 61.4
B30: 3 | C30: 1 | D30: 73
B32: Point | C32: X | D32: Y
A33: CUT | B33: 1 | C33: 2958.09 | D33: 4047.0472
B34: 2 | C34: 3186.44 | D34: =D33-(((C33-C34)*(D33-D35))/((C33-C35))) -> 4046.415219 | F34: Y2 = | G34: =ROUND(D34,2) -> 4046.42
B35: 3 | C35: 3206.97 | D35: 4046.3584

Sheet Slope Intersection (hidden)
A1: Line A
A2: Point 1 | D2: Point 2 | G2: Equation
A3: Location (x1) | B3: Elevation (y1) | D3: Location (x2) | E3: Elevation (y2) | G3: y=mx+b | H3: m | I3: b | K3: y | L3: x | N3: SOLVER
A4: 5 | B4: 2104.28 | D4: 11.423 | E4: 2104.75 | H4: =(E4-B4)/(D4-A4) -> 0.07317452904 | I4: =B4-H4*A4 -> 2103.914127 | K4: =H4*L4+I4 -> 2102.740713 | L4: -16.03582505 | N4: =K4-K9 -> -6.280729394e-07
A6: Line B
A7: Point 1 | D7: Point 2 | G7: Equation
A8: Location (x1) | B8: Elevation (y1) | D8: Location (x2) | E8: Elevation (y2) | G8: y=mx+b | H8: m | I8: b | K8: y | L8: x
A9: 0 | B9: 2103.7 | D9: 11.2 | E9: 2104.37 | H9: =(E9-B9)/(D9-A9) -> 0.05982142857 | I9: =B9-H9*A9 -> 2103.7 | K9: =H9*L9+I9 -> 2102.740714 | L9: =L4 -> -16.03582505

Sheet Slope Calculator (hidden)
A2: Point A | G2: Point B
A3: Location (x1) | B3: Elevation (y1) | D3: Slope = | E3: =(H4-B4)/(G4-A4) -> -0.006857142857 | G3: Location (x2) | H3: Elevation (y2)
A4: 0 | B4: 2798.02 | G4: 35 | H4: 2797.78
